Cogmind - Beta 13 @@@ ROGUE MODE // 2024.04.18 @ 21:35:42 Player: Calliope Result: Destroyed by 70-T4A(R) with Subdweller Laser Performance ------------- Evolutions (0) 0 Regions Visited (3) 600 Robots Destroyed (32) 160 Value Destroyed (640) 640 Prototype IDs (0) 0 Alien Tech Used (0) 0 Bonus (14) 14 TOTAL SCORE: 1414 Bonus ------- Follower Combat Kills 14 Cogmind --------- Core Integrity 0/250 Matter 299/300 Energy 198/200 System Corruption 4% Temperature Cool (6) Movement Treading (480) Ox4 Location -10/Subcaves Parts ------- > --- POWER (1) -------- Subdweller Power Source > --- PROPULSION (2) --- Light Treads > --- UTILITY (2) ------ Huge Storage Unit Machine Analyzer > --- WEAPON (2) ------- Makeshift Laser Light Assault Rifle > --- INVENTORY (25) --- Ion Engine Light Ion Engine Light Ion Engine Subdweller Power Source Light Nuclear Core Aluminum Leg Aluminum Leg Carbon-fiber Leg Compact Wheel Heat Sink Improved Heat Sink Medium Storage Unit High-capacity Matter Pod (200) Improved Terrain Scanner Hacking Suite Light Assault Rifle Light Assault Rifle Datajack Piercing Trap Stasis Trap (100%) Stasis Trap (100%) Stasis Trap (100%) Stasis Trap (100%) Peak State ------------ > --- POWER ------------ Light Nuclear Core > --- PROPULSION ------- Light Treads Light Treads > --- UTILITY ---------- Huge Storage Unit Machine Analyzer > --- WEAPON ----------- Makeshift Laser Light Assault Rifle > --- INVENTORY -------- Ion Engine Light Ion Engine Light Ion Engine Subdweller Power Source Aluminum Leg Aluminum Leg Compact Wheel Flight Unit Heat Sink Improved Heat Sink Medium Storage Unit High-capacity Matter Pod Improved Terrain Scanner Hacking Suite Light Assault Rifle Light Assault Rifle Light Assault Rifle Datajack Piercing Trap Stasis Trap Stasis Trap Stasis Trap Stasis Trap [Rating: 17] Favorites ----------- Power Light Ion Engine Engine Light Ion Engine Power Core Light Nuclear Core Propulsion Light Treads Treads Light Treads Leg Aluminum Leg Wheel Compact Wheel Hover Unit Hover Unit Flight Unit Flight Unit Utility Machine Analyzer Device Heat Sink Storage Huge Storage Unit Processor Machine Analyzer Weapon Light Assault Rifle Energy Gun Small Laser Ballistic Gun Light Assault Rifle Build | -11 -10 -10 -10 ------- Run | Yrd Mat Min Sub Slots Evolved . | . . . . Power . | . . . . Propulsion . | . . . . Utility . | . . . . Weapon . | . . . . Parts Attached 42 | 6 29 4 3 Power 4 | 1 1 1 1 Engine 3 | 1 1 . 1 Core 1 | . . 1 . Reactor . | . . . . Propulsion 20 | 2 17 1 . Treads 10 | 2 7 1 . Leg 4 | . 4 . . Wheel 1 | . 1 . . Hover 3 | . 3 . . Flight 2 | . 2 . . Utility 4 | 1 3 . . Device 1 | . 1 . . Storage 2 | 1 1 . . Processor 1 | . 1 . . Hackware . | . . . . Protection . | . . . . Artifact . | . . . . Weapon 14 | 2 8 2 2 Energy Gun 6 | 1 4 . 1 Energy Cannon . | . . . . Ballistic Gun 8 | 1 4 2 1 Ballistic Cannon . | . . . . Launcher . | . . . . Special Weapon . | . . . . Impact Weapon . | . . . . Slashing Weapon . | . . . . Piercing Weapon . | . . . . Special Melee Weapon . | . . . . Unidentified Prototypes . | . . . . Parts Lost 6 | . 2 2 2 Power 1 | . 1 . . Propulsion 2 | . . 1 1 Utility . | . . . . Weapon 3 | . 1 1 1 Highest Loss Streak 2 | . 2 1 2 To Critical Strikes 2 | . 1 . 1 Average Slot Usage (%) 95 | . 94 98 98 Engine 9 | . 13 3 2 Core 4 | . . 10 11 Treads 24 | . 23 26 26 Leg 1 | . 3 . . Storage 14 | . 14 14 14 Processor 11 | . 8 14 14 Energy Gun 10 | . 14 3 8 Ballistic Gun 17 | . 13 24 19 Naked Turns . | . . . . Heaviest Build 88 | 13 85 87 88 Greatest Support 40 | 40 40 40 40 Greatest Overweight (x) 28 | . 28 4 4 Average Overweight (x) 1 | . 1 2 2 Largest Inventory Capacity 25 | 8 25 25 25 Average Capacity 19 | 7 16 25 25 Most Carried 25 | 8 12 21 25 Average Carried 12 | 5 8 17 22 Final Capacity 25 | 8 25 25 25 Final Carried 23 | 8 12 21 23 Class Distribution -------------------- 93% | Mutant 6% | Scavenger-Mutant Dominant Class ---------------- Mutant | -10/Materials Mutant | -10/Mines Mutant | -10/Subcaves Resources | -11 -10 -10 -10 ----------- Run | Yrd Mat Min Sub Matter Collected 1079 | 263 323 284 209 Remotely . | . . . . Salvage Created 929 | 94 515 202 118 Parts 72 | 4 42 21 5 Haulers Intercepted 1 | . 1 . . Recyclers Shooed 2 | 1 1 . . Parts Field Recycled . | . . . . Retrieved Matter . | . . . . Parts Self-Destructed 3 | . . . 3 Prevented . | . . . . Kills | -11 -10 -10 -10 ------- Run | Yrd Mat Min Sub Combat Hostiles Destroyed 24 | . 13 8 3 Guns 24 | . 13 8 3 Classes Destroyed 9 | 2 5 1 1 Builder 1 | . . 1 . Tunneler 1 | 1 . . . Hauler 1 | . 1 . . Recycler 1 | 1 . . . Mechanic 1 | . 1 . . Operator 3 | . 3 . . Swarmer 12 | . 6 6 . Grunt 9 | . 7 2 . Subdweller 3 | . . . 3 Best Kill Streak 4 | 2 4 4 1 Combat Bots Only 4 | . 4 3 1 Max Kills in Single Turn 2 | 1 1 2 1 Gunslinging 1 | . . 1 . Exploded . | . . . . Melee . | . . . . Uniques/NPCs Destroyed . | . . . . Combat | -11 -10 -10 -10 -------- Run | Yrd Mat Min Sub Hostile Shots Fired 162 | . 82 53 27 Missed 36 | . 16 13 7 Damage Taken 1507 | . 652 421 434 Core 267 | . 83 77 107 Absorbed by Shields . | . . . . Core Remaining (%) 100 | 100 . . . Volleys Fired 106 | 3 61 24 18 Largest 2 | 2 2 2 2 Hottest 80 | 70 80 60 70 Shots Fired 202 | 6 122 39 35 Gun 202 | 6 122 39 35 Cannon . | . . . . Launcher . | . . . . Special . | . . . . Kinetic 111 | 3 60 28 20 Thermal 91 | 3 62 11 15 Explosive . | . . . . Electromagnetic . | . . . . Robot Hit Streak 22 | 4 11 14 22 Robot Miss Streak 6 | . 6 3 1 Penetration Max . | . . . . Secondary Targets 6 | . 4 2 . Max Gunslinging Chain 1 | . 1 1 . Shots Hit Robots 141 | 4 79 27 31 Core Hits 52 | 3 30 13 6 Critical Kills . | . . . . Critical Parts Destroyed . | . . . . Critical Strikes 2 | . . . 2 Burn 2 | . . . 2 Melee Attacks . | . . . . Impact . | . . . . Slashing . | . . . . Piercing . | . . . . Sneak Attacks . | . . . . Combat Hostiles . | . . . . Follow-up Attacks . | . . . . Damage Inflicted 1471 | 47 787 276 361 Guns 1471 | 47 787 276 361 Cannons . | . . . . Explosions . | . . . . Melee . | . . . . Ramming . | . . . . Kinetic 584 | 9 291 175 109 Thermal 887 | 38 496 101 252 Explosive . | . . . . Electromagnetic . | . . . . Impact . | . . . . Slashing . | . . . . Piercing . | . . . . Highest Corruption 4 | . 4 4 4 Average Corruption 3 | . 3 4 4 Corruption Purged . | . . . . Corruption Blocked . | . . . . Effects 84 | . 42 30 12 Message Errors 24 | . 11 10 3 Matter Fused 23 | . 15 6 2 Heat Flow Errors 7 | . 1 6 . Energy Discharges 12 | . 4 2 6 Parts Rejected 2 | . 1 1 . Data Loss (minor) 5 | . 1 3 1 Data Loss (major) 5 | . 3 2 . Misfires 3 | . 3 . . Alerts 1 | . 1 . . Weapon Failures 2 | . 2 . . Overload Shots . | . . . . Overflow Damage . | . . . . Projectiles . | . . . . Explosions . | . . . . Melee . | . . . . Knockbacks . | . . . . Impact . | . . . . Kinetic . | . . . . Secondary . | . . . . Self-Inflicted Damage . | . . . . Shots . | . . . . Rammed . | . . . . Targets Rammed . | . . . . Kicked . | . . . . Crushed . | . . . . Highest Temperature 322 | 60 294 322 . Average Temperature 88 | 26 88 94 . Received Heat Transfer 420 | . 252 126 42 Effects 5 | . 5 . . Energy Bleed 1 | . 1 . . Interference 4 | . 4 . . Siege Activations . | . . . . Robots Corrupted . | . . . . Combat Hostiles . | . . . . Parts Fried . | . . . . Impact Corruptions . | . . . . Robots Melted . | . . . . Combat Hostiles . | . . . . Parts Melted 8 | 1 2 . 5 Heat Transferred 2283 | 111 1244 225 703 Parts Sabotaged . | . . . . Parts Stolen . | . . . . Parts Stripped . | . . . . Power Chain Reactions . | . . . . Alert | -11 -10 -10 -10 ------- Run | Yrd Mat Min Sub Peak Influence 185 | 10 185 110 . Initial 6 | . 6 4 . Average 29 | 3 27 37 . Maximum Alert Level . | . . . . Low Security (%) 100 | 100 100 100 . Level 1 . | . . . . Level 2 . | . . . . Level 3 . | . . . . Level 4 . | . . . . Level 5 . | . . . . High Security . | . . . . Max Security . | . . . . Squads Dispatched 3 | . 3 . . Investigation . | . . . . Extermination . | . . . . Reinforcement 3 | . 3 . . Assault . | . . . . Garrison . | . . . . Intercept . | . . . . Searches Triggered . | . . . . Construction Impeded . | . . . . Haulers Reinforced . | . . . . Active Scanning Responses . | . . . . Cargo Convoy Interrupts . | . . . . Stealth | -11 -10 -10 -10 --------- Run | Yrd Mat Min Sub Distress Signals 6 | . 6 . . Communications Jammed . | . . . . Distress Signals . | . . . . Times Spotted 52 | . 40 8 4 Peak Tracking Total 9 | . 9 3 1 Tactical Retreats 3 | . 3 . . Traps | -11 -10 -10 -10 ------- Run | Yrd Mat Min Sub Traps Triggered 2 | . 2 . . Indirectly . | . . . . Trap Hack Attempts . | . . . . Triggered . | . . . . Disarmed . | . . . . Reprogrammed . | . . . . Reused . | . . . . Traps Extracted . | . . . . Installed . | . . . . Triggered . | . . . . Most Traps Carried 5 | . . 4 5 Machines | -11 -10 -10 -10 ---------- Run | Yrd Mat Min Sub Machines Disabled . | . . . . Max in Single Turn . | . . . . Machines Repaired . | . . . . Machines Dismantled . | . . . . Machines Sabotaged . | . . . . Overloaded Fab Kills . | . . . . Hacking | -11 -10 -10 -10 --------- Run | Yrd Mat Min Sub Machines Accessed 3 | . 3 . . Terminals 2 | . 2 . . Fabricators . | . . . . Repair Stations . | . . . . Recycling Units 1 | . 1 . . Scanalyzers . | . . . . Garrison Access . | . . . . Total Hacks 10 | . 10 . . Successful 6 | . 6 . . Failed 4 | . 4 . . Catastrophic . | . . . . Database Lockouts . | . . . . Manual 11 | . 11 . . Terminals 8 | . 8 . . Fabricators . | . . . . Repair Stations . | . . . . Recycling Units 2 | . 2 . . Scanalyzers . | . . . . Garrison Access . | . . . . Terminal Hacks 3 | . 3 . . Alert Level 1 | . 1 . . Unreport Threat 1 | . 1 . . Reinforcement Status 1 | . 1 . . Fabricator Hacks . | . . . . Repair Station Hacks . | . . . . Recycling Unit Hacks . | . . . . Scanalyzer . | . . . . Garrison Access Hacks . | . . . . Unauthorized Hacks 3 | . 3 . . Terminals 2 | . 2 . . Botnet 2 | . 2 . . Fabricators . | . . . . Repair Stations . | . . . . Recycling Units 1 | . 1 . . Reject 1 | . 1 . . Scanalyzers . | . . . . Garrison Access . | . . . . Data Cores Recovered . | . . . . Used . | . . . . Hacking Detections 2 | . 2 . . Full Trace Events . | . . . . Feedback Events . | . . . . Feedback Blocked . | . . . . Robot Schematics Acquired . | . . . . Robots Built . | . . . . Authchips . | . . . . Time . | . . . . Total Robot Build Rating . | . . . . Part Schematics Acquired . | . . . . Parts Built . | . . . . Authchips . | . . . . Time . | . . . . Total Part Build Rating . | . . . . Parts Repaired . | . . . . Time . | . . . . Parts Recycled . | . . . . Recycled Matter . | . . . . Retrieved Matter . | . . . . Retrieved Components . | . . . . Parts Scanalyzed . | . . . . Part Schematics Acquired . | . . . . Parts Damaged . | . . . . Bothacking | -11 -10 -10 -10 ------------ Run | Yrd Mat Min Sub Used RIF Installer . | . . . . Robots Hacked . | . . . . Non-combat . | . . . . Combat . | . . . . Robot Hacks Applied . | . . . . Relay Couplers Released . | . . . . Fabnet Peak Effective % . | . . . . Robots Rewired . | . . . . Allies Hacked . | . . . . Hacks Repelled . | . . . . Allies | -11 -10 -10 -10 -------- Run | Yrd Mat Min Sub Total Allies 1 | . . 1 . Largest Group 1 | . . 1 1 Highest-Rated Group 31 | . . 31 31 Highest-Rated Ally 31 | . . 31 31 Total Orders . | . . . . Ally Attacks 13 | . . 4 9 Total Damage 165 | . . 62 103 Kills 2 | . . 2 . Allies Corrupted . | . . . . Allies Melted . | . . . . Intel | -11 -10 -10 -10 ------- Run | Yrd Mat Min Sub Robot Analysis Total . | . . . . Derelict Logs Recovered 2 | . . 1 1 Drone Launches . | . . . . Drone Recoveries . | . . . . Exploration | -11 -10 -10 -10 ------------- Run | Yrd Mat Min Sub Turns Passed 5215 | 190 2841 1528 656 Spaces Moved 1518 | 103 911 328 176 Core 6 | 1 5 . . Treads 1329 | 102 723 328 176 Legs 175 | . 175 . . Wheels 2 | . 2 . . Hover 5 | . 5 . . Flight 1 | . 1 . . Fastest Speed 50 | 50 100 320 320 Average Speed 259 | 158 229 336 328 Slowest Speed 1720 | 160 1720 480 480 Overloaded Moves . | . . . . Propulsion Burnouts . | . . . . Robots Hopped . | . . . . Cave-ins Triggered . | . . . . Exploration Rate (%) 45 | 5 76 85 16 Regions Visited 3 Branch Regions 2 Pre-discovered Areas . | . . . . Known Exits Taken 1 | . . 1 . Unknown Exits Taken 2 | 1 1 . . Scrap Searched 4 | . . 1 3 Spaces Dug . | . . . . Terrain Destroyed . | . . . . Melee . | . . . . Projectile . | . . . . AOE . | . . . . Terrain Rammed . | . . . . Walls Destroyed . | . . . . Machines Disabled . | . . . . Actions | -11 -10 -10 -10 --------- Run | Yrd Mat Min Sub Total 2621 | 121 1555 719 226 Wait 901 | 2 523 354 22 Move 1515 | 102 910 327 176 Hop . | . . . . Pick Up 30 | 8 9 10 3 Fast Attach 21 | 6 12 1 2 Attach 9 | . 6 2 1 Detach 9 | . 7 . 2 Swap 12 | . 11 1 . Drop 18 | . 16 . 2 Fire 106 | 3 61 24 18 Melee . | . . . . Ram . | . . . . Kick . | . . . . Crush . | . . . . Escape Stasis . | . . . . Rewire . | . . . . Trap . | . . . . Miscellaneous . | . . . . Route ------- -11/Scrapyard -10/Materials (discovered 4 exits: [*Mat x3] / [*Min]) -10/Mines (discovered 3 exits: [*Mat x2] / *Sub) -10/Subcaves History --------- Turn | Location | Event 23 | -11/Scrapyard | Discovered new exit (range 14) 191 | -11/Scrapyard | Entered Materials 306 | -10/Materials | Build established: Mutant 966 | -10/Materials | Discovered new exit (range 16) 1379 | -10/Materials | Build established: Scavenger-Mutant 1700 | -10/Materials | Build established: Mutant 1703 | -10/Materials | Discovered new exit (range 3) 1844 | -10/Materials | Discovered new exit (range 8) 2464 | -10/Materials | Discovered new exit (range 8) 3032 | -10/Materials | Entered Mines 3095 | -10/Mines | Identified exit to Subcaves 3538 | -10/Mines | Core integrity fell below 50% 3554 | -10/Mines | Escorted by a lone wolf Derelict 3775 | -10/Mines | Found a hidden stash of uninstalled traps 3881 | -10/Mines | Discovered new exit (range 9) 4000 | -10/Mines | Discovered new exit (range 8) 4560 | -10/Mines | Entered Subcaves 4560 | -10/Subcaves | Accompanied by 1 ally 4671 | -10/Subcaves | Learned Materials interactive machine intel 5163 | -10/Subcaves | Core integrity fell below 20% 5216 | -10/Subcaves | Destroyed by 70-T4A(R) with Subdweller Laser Last Messages --------------- 05115_ Subatomizers dissect the Sub. Power Source. 05118_ Acquired Sub. Power Source. 05125_ Dropped Flight Unit. 05127_ BQ-B81(R): "MADSUB!" 05146_ Critical hit (Destroy). 05146_ Lgt. Treads destroyed. 05152_ Subatomizers dissect the Sub. Machine Gun. 05163_ BQ-B81(R) suffers critical hit (Burn). 05164_ Lgt. Assault Rifle destroyed. 05166_ BQ-B81(R) suffers critical hit (Burn). 05168_ System corrupted: Matter fused (-5). 05169_ Sub. Machine Gun melted. 05169_ Disposable Heat Sink melted. 05169_ BQ-B81(R) destroyed. 05172_ Acquired 24 matter. 05188_ Subatomizers dissect the Sub. Optics. 05202_ T=4=KTDHBLC WKDBB|N=5P 05202_ Subatomizers dissect the Sub. Optics. Map ----- +----------------------------------------------------+ | ??????????????????????????????# ### | | ??????????????????????????????# ### ## #### | | ??????????????????????????????### ######??## | | ????????????????????????????????# ##???????## | | ????????????????????????????????# #????????## | | ????????????????????????????????# ##?????????? | | ????????????????????????????????## #??????????? | | ?????????????????????????????????## ##??????????? | | ?????????????????????????????????## #???????????? | | ????????????????????????????????## #???????????? | | ???????????????????????????????## #???????????? | | ???????????????????????????????# ####????????? | | ???????????????????????????????# ##???????? | | ???????????????????????????????## #???????? | | ????????????????????????????????## #???????? | | ?????????????????????????????????# ##??????? | | ???????????????????????###??#????## #??????? | | ??????????????????????# ? ## ?????# #??????? | | ?????????????????????? ?? ##????# # ##??????? | | ????????????????????## ??# #????# # ##???????? | | ???????????????????## ##?# #???##### #????????? | | ???????????????????# ### #???# ## #????????? | | ???????????????????# # ## #???# ##???????? | | ???????????????????# # #???## #???????? | | ???????????????????# ## ####### ""#???????? | | ???????????????????####%[@ ## #### "#???????? | | ??????????????????????# R## """#???????? | | ??????????????????????#!=### #######""""#??????? | | ??????????????????????# # ####?????#" """ ?????? | | ??????????????????????# !% #???????#"""""#?????? | | ?????????????????????#"### #??????? #??????? | | ?????????????????????##??# ##???????? #??????? | | ?????????????????????????? #????????? #??????? | | ?????????????????????????? ?????????? #???????? | | ?????????????????????????? ???????????????????? | | ?????????????????????????? ??????????????????? | | ????????????????????????? #?????????????????? | | ????????????????????????? ##?????????????????? | | ????????????????????????? ? ##??????????????????? | | ????????????????????????? ?? #???????????????????? | | ???????????????????????????? #???????????????????? | | ???????????????????????????? #???????????????????? | | ????????????????????????????? ???????????????????? | | ?????????????????????????????????????????????????? | | ?????????????????????????????????????????????????? | | ?????????????????????????????????????????????????? | | ?????????????????????????????????????????????????? | | ?????????????????????????????????????????????????? | | ?????????????????????????????????????????????????? | | ?????????????????????????????????????????????????? | +----------------------------------------------------+ Best States ------------- Heat Dissipation 35 Energy Generation 15 Energy Capacity 250 Matter Stores 300 Matter Capacity 300 Sight Range 16 Terrain Scan Density 10 Evasion (%) 55 Recoil Reduction 2 Item Schematics ----------------- None Robot Schematics ------------------ None Fabricated ------------ Nothing Alien Tech Used ----------------- None Achievements -------------- Universal Adapter Challenges ------------ None Game ------ Seed MachineQuantumRailgun Manual? 0 Play Time 00:24:43 Cumulative 18.1 hours Start 2024.04.18 @ 21:10:35 End 2024.04.18 @ 21:35:42 Sessions 1 Manual Loads 0 Difficulty Rogue Special Mode None Game No. 32 Rogue 30 Adventurer 0 Explorer 2 Win Type - Total 0 Types 0/0/0/0/0/0/0/0/0 Lore% 7 Gallery% 22 Achievement% 23 Wizard Run 0 Options --------- Layout 2 ASCII 0 Keyboard 1 Movement Vi Keybinds 0 Fullscreen 2 Font 32/SmallcapsGlow Map View 50x44 Zoom Use 0% Tactical HUD 1 Map Filters NONE Filters NONE Steam 1 RUN: 7e99b11c-ab87-4067-9ad1-ad0c5e6a9581